fUST/lending_fUST_20250723
["ID","MTS","AMOUNT","RATE_DAILY","PERIOD"]
[374352932,1753278651281,-1926.88,0.00021643,2]
[374352934,1753278651291,-460.0,0.00021643,2]
[374352936,1753278651300,-1268.06,0.00021643,2]
[374352938,1753278651310,-621.61,0.00021643,2]
[374352940,1753278651319,-480.34,0.00021643,2]
[374352942,1753278651329,-460.0,0.00021643,2]
[374352944,1753278651339,-460.0,0.00021643,2]
[374352946,1753278651348,-460.0,0.00021643,2]
[374352948,1753278651358,-460.0,0.00021643,2]
[374352950,1753278651368,-549.96,0.00021643,2]
[374352952,1753278651379,-460.0,0.00021643,2]
[374352954,1753278651389,-460.0,0.00021643,2]
[374352956,1753278651398,-460.0,0.00021643,2]
[374352958,1753278651408,-460.0,0.00021643,2]
[374352960,1753278651417,-580.38,0.00021643,2]
[374352962,1753278651427,-460.0,0.00021643,2]
[374352964,1753278651436,-460.0,0.00021643,2]
[374352966,1753278651446,-460.0,0.00021643,2]
[374352968,1753278651457,-464.15,0.00021643,2]
[374352970,1753278651467,-961.09,0.00021643,2]
[374352972,1753278651476,-2054.53,0.00021643,2]
[374352974,1753278651485,-460.0,0.00021643,2]
[374352976,1753278651494,-542.39,0.00021643,2]
[374352978,1753278651503,-460.0,0.00021643,2]
[374352980,1753278651512,-460.0,0.00021643,2]
[374352982,1753278651521,-484.64,0.00021643,2]
[374352984,1753278651530,-460.0,0.00021643,2]
[374352986,1753278651540,-460.0,0.00021643,2]
[374352988,1753278651549,-3279.89,0.00021643,2]
[374352990,1753278651558,-595.63,0.00021643,2]
[374352992,1753278651568,-708.43,0.00021643,2]
[374352994,1753278651577,-460.0,0.00021643,2]
[374352996,1753278651586,-460.0,0.00021643,2]
[374352998,1753278651596,-1333.69,0.00021643,2]
[374353000,1753278651606,-10302.36,0.00021643,2]
[374353001,1753278651615,-553.39,0.00021643,2]
[374353003,1753278651625,-460.0,0.00021643,2]
[374353005,1753278651634,-478.71,0.00021643,2]
[374353007,1753278651644,-460.0,0.00021643,2]
[374353009,1753278651654,-460.0,0.00021643,2]
[374353011,1753278651663,-2453.51,0.00021643,2]
[374353013,1753278651673,-2633.59,0.00021643,2]
[374353015,1753278651682,-536.74,0.00021643,2]
[374353018,1753278651693,-460.0,0.00021643,2]
[374353019,1753278651702,-460.0,0.00021643,2]
[374353021,1753278651717,-2867.23,0.00021643,2]
[374353024,1753278651727,-460.0,0.00021643,2]
[374353026,1753278651737,-828.75,0.00021643,2]
[374353027,1753278651746,-1093.38,0.00021643,2]
[374353029,1753278651757,-460.0,0.00021643,2]
[374353032,1753278651767,-1266.0,0.00021643,2]
[374353034,1753278651777,-1689.94,0.00021643,2]
[374353036,1753278651787,-460.0,0.00021643,2]
[374353038,1753278651797,-1612.78,0.00021643,2]
[374353039,1753278651809,-1545.58,0.00021643,2]
[374353041,1753278651819,-561.41,0.00021643,2]
[374353043,1753278651829,-1330.376908,0.00021668,2]
[374353045,1753278651839,-360.0,0.00021672,2]
[374353048,1753278651849,-25000.0,0.0002175,2]
[374353049,1753278651859,-3449.9,0.00021767,5]
[374353051,1753278651868,-308.34046914,0.00021784,2]
[374353054,1753278651878,-1000.0,0.000218,5]
[374353055,1753278651888,-500.0,0.00021812,2]
[374353057,1753278651898,-354.0965,0.00021817,3]
[374353060,1753278651908,-322.621255,0.00021817,3]
[374353061,1753278651917,-3432.7107726,0.00021822,2]
[374353063,1753278651927,-594.79640088,0.00021841,2]
[374353066,1753278651938,-1000.0,0.0002186,2]
[374353068,1753278651947,-1000.0,0.0002186,2]
[374353070,1753278651961,-1000.0,0.00021875,2]
[374353072,1753278651970,-1000.0,0.00021875,2]
[374353074,1753278651981,-1000.0,0.00021875,2]
[374353076,1753278651990,-1000.0,0.00021875,2]
[374353078,1753278652001,-1000.89543393,0.00021875,2]
[374353080,1753278652011,-1000.0,0.00021875,2]
[374353082,1753278652020,-501.72112936,0.00021875,2]
[374353084,1753278652030,-505.18002943,0.00021875,2]
[374353086,1753278652039,-1000.0,0.00021875,2]
[374353088,1753278652049,-414.71052898,0.00021875,2]
[374353090,1753278652059,-1057.1355728,0.00021875,2]
[374353092,1753278652069,-1000.0,0.00021875,2]
[374353094,1753278652078,-1000.0,0.00021875,2]
[374353096,1753278652088,-1005.32976117,0.00021875,2]
[374353098,1753278652097,-1000.0,0.00021875,2]
[374353100,1753278652106,-151.0,0.000219,4]
[374353101,1753278652116,-299.77258459,0.00021905,2]
[374353104,1753278652127,-1000.0,0.00021905,2]
[374353105,1753278652137,-1000.0,0.00021905,2]
[374353107,1753278652147,-1000.0,0.00021905,2]
[374353109,1753278652157,-1000.0,0.00021905,2]
[374353111,1753278652166,-1123.3398421,0.00021905,2]
[374353113,1753278652176,-1000.0,0.00021905,2]
[374353115,1753278652186,-1000.0,0.00021905,2]
[374353117,1753278652196,-501.11731388,0.00021905,2]
[374353119,1753278652208,-1000.0,0.00021905,2]
[374353121,1753278652218,-1000.0,0.00021905,2]
[374353123,1753278652228,-1000.0,0.00021905,2]
[374353125,1753278652239,-1000.0,0.00021905,2]
[374353127,1753278652249,-1000.0,0.00021905,2]
[374353129,1753278652259,-1000.0,0.00021905,2]
[374353131,1753278652268,-1000.0,0.00021905,2]
[374353133,1753278652278,-1000.0,0.00021912,2]
[374353135,1753278652288,-7526.64,0.00021917,2]
[374353137,1753278652297,-460.0,0.00021917,2]
[374353139,1753278652308,-460.0,0.00021917,2]
[374353141,1753278652318,-1926.88,0.00021917,2]
[374353143,1753278652328,-576.88,0.00021917,2]
[374353145,1753278652337,-1268.06,0.00021917,2]
[374353147,1753278652347,-621.61,0.00021917,2]
[374353149,1753278652356,-480.34,0.00021917,2]
[374353151,1753278652365,-500.0,0.00021917,2]
[374353153,1753278652375,-500.0,0.00021917,2]
[374353155,1753278652384,-500.0,0.00021917,2]
[374353157,1753278652393,-500.0,0.00021917,2]
[374353159,1753278652404,-500.0,0.00021917,2]
[374353161,1753278652414,-500.0,0.00021917,2]
[374353163,1753278652424,-500.0,0.00021917,2]
[374353165,1753278652433,-460.0,0.00021917,2]
[374353168,1753278652443,-460.0,0.00021917,2]
[374353169,1753278652452,-460.0,0.00021917,2]
[374353171,1753278652465,-460.0,0.00021917,2]
[374353173,1753278652474,-549.96,0.00021917,2]
[374353175,1753278652484,-460.0,0.00021917,2]
[374353177,1753278652493,-267.31435184,0.00021917,2]
[374353179,1753278652503,-460.0,0.00021917,2]
[374353181,1753278652513,-460.0,0.00021917,2]
[374353183,1753278652523,-580.38,0.00021917,2]
[374353185,1753278652533,-460.0,0.00021917,2]
[374353187,1753278652542,-460.0,0.00021917,2]
[374353189,1753278652553,-961.09,0.00021917,2]
[374353191,1753278652564,-2054.53,0.00021917,2]
[374353193,1753278652574,-542.39,0.00021917,2]
[374353195,1753278652585,-460.0,0.00021917,2]
[374353197,1753278652595,-460.0,0.00021917,2]
[374353199,1753278652605,-484.64,0.00021917,2]
[374353201,1753278652616,-460.0,0.00021917,2]
[374353203,1753278652626,-460.0,0.00021917,2]
[374353205,1753278652637,-3279.89,0.00021917,2]
[374353207,1753278652647,-595.63,0.00021917,2]
[374353209,1753278652657,-708.43,0.00021917,2]
[374353211,1753278652667,-460.0,0.00021917,2]
[374353213,1753278652677,-460.0,0.00021917,2]
[374353215,1753278652687,-1333.69,0.00021917,2]
[374353217,1753278652696,-10302.36,0.00021917,2]
[374353219,1753278652710,-553.39,0.00021917,2]
[374353221,1753278652720,-460.0,0.00021917,2]
[374353223,1753278652729,-478.71,0.00021917,2]
[374353225,1753278652737,-460.0,0.00021917,2]
[374353227,1753278652747,-460.0,0.00021917,2]
[374353229,1753278652756,-2453.51,0.00021917,2]
[374353230,1753278652766,-2633.59,0.00021917,2]
[374353231,1753278652777,-536.74,0.00021917,2]
[374353232,1753278652786,-460.0,0.00021917,2]
[374353233,1753278652796,-460.0,0.00021917,2]
[374353234,1753278652806,-2867.23,0.00021917,2]
[374353235,1753278652816,-460.0,0.00021917,2]
[374353237,1753278652830,-828.75,0.00021917,2]
[374353239,1753278652839,-1093.38,0.00021917,2]
[374353241,1753278652848,-460.0,0.00021917,2]
[374353243,1753278652858,-1266.0,0.00021917,2]
[374353245,1753278652870,-1612.78,0.00021917,2]
[374353246,1753278652879,-1545.58,0.00021917,2]
[374353249,1753278652892,-561.41,0.00021917,2]
[374353251,1753278652901,-1322.9240316,0.00021918,7]
[374353253,1753278652911,-200.0,0.00021918,2]
[374353255,1753278652921,-150.46368495,0.00021918,2]
[374353257,1753278652929,-354.0965,0.00021918,2]
[374353259,1753278652939,-322.621255,0.00021918,2]
[374353261,1753278652948,-154.78785944,0.00022,2]
[374353263,1753278652963,-161.0,0.00022,5]
[374353266,1753278652973,-1348.84,0.00022,7]
[374353269,1753278652985,-14285.35,0.00022,7]
[374353272,1753278652995,-2946.59,0.00022,7]
[374353275,1753278653005,-2828.394855,0.00022,7]
[374353279,1753278653015,-2828.394855,0.00022,7]
[374353282,1753278653024,-161.0,0.00022,4]
[374353285,1753278653034,-161.25750673,0.00022,3]
[374353288,1753278653043,-680.710666,0.00022,7]
[374353291,1753278653053,-680.710666,0.00022,7]
[374353294,1753278653062,-151.0,0.00022,7]
[374353297,1753278653072,-151.0,0.00022,7]
[374353300,1753278653081,-151.0,0.00022,7]
[374353303,1753278653091,-12622.36869388,0.00022,7]
[374353307,1753278653101,-214.67886746,0.00022,7]
[374353310,1753278653111,-160.0,0.00022,7]
[374353312,1753278653120,-476.696448,0.00022,7]
[374353314,1753278653130,-204.0,0.00022,2]
[374353316,1753278653140,-178.2325116,0.00022027,2]
[374353318,1753278653150,-577.5430988,0.00022027,2]
[374353320,1753278653159,-577.5430988,0.00022027,2]
[374353333,1753278653277,-577.5430988,0.00022027,2]
[374353335,1753278653287,-577.5430988,0.00022027,2]
[374353337,1753278653298,-3449.9,0.000221,5]
[374353339,1753278653307,-3432.7107726,0.00022113,2]
[374353341,1753278653317,-7526.64,0.00022191,2]
[374353343,1753278653326,-460.0,0.00022191,2]
[374353345,1753278653335,-398.41,0.00022191,2]
[374353347,1753278653345,-1926.88,0.00022191,2]
[374353349,1753278653353,-1268.06,0.00022191,2]
[374353351,1753278653363,-621.61,0.00022191,2]
[374353353,1753278653373,-480.34,0.00022191,2]
[374353356,1753278653383,-460.0,0.00022191,2]
[374353358,1753278653393,-460.0,0.00022191,2]
[374353360,1753278653402,-460.0,0.00022191,2]
[374353362,1753278653411,-549.96,0.00022191,2]
[374353364,1753278653421,-460.0,0.00022191,2]
[374353366,1753278653431,-460.0,0.00022191,2]
[374353368,1753278653440,-580.38,0.00022191,2]
[374353370,1753278653450,-460.0,0.00022191,2]
[374353372,1753278653463,-460.0,0.00022191,2]
[374353374,1753278653473,-961.09,0.00022191,2]
[374353375,1753278653479,-2054.53,0.00022191,2]
[374353378,1753278653489,-542.39,0.00022191,2]
[374353380,1753278653499,-460.0,0.00022191,2]
[374353382,1753278653507,-460.0,0.00022191,2]
[374353384,1753278653517,-484.64,0.00022191,2]
[374353386,1753278653525,-460.0,0.00022191,2]
[374353388,1753278653534,-460.0,0.00022191,2]
[374353390,1753278653544,-3279.89,0.00022191,2]
[374353392,1753278653554,-595.63,0.00022191,2]
[374353394,1753278653563,-708.43,0.00022191,2]
[374353396,1753278653572,-1333.69,0.00022191,2]
[374353398,1753278653581,-10302.36,0.00022191,2]
[374353400,1753278653591,-553.39,0.00022191,2]
[374353402,1753278653600,-460.0,0.00022191,2]
[374353404,1753278653610,-478.71,0.00022191,2]
[374353406,1753278653619,-460.0,0.00022191,2]
[374353408,1753278653630,-460.0,0.00022191,2]
[374353410,1753278653639,-2453.51,0.00022191,2]
[374353412,1753278653649,-2633.59,0.00022191,2]
[374353414,1753278653658,-536.74,0.00022191,2]
[374353416,1753278653670,-460.0,0.00022191,2]
[374353418,1753278653691,-153.58003465,0.00022191,2]
[374353420,1753278653709,-2867.23,0.00022191,2]
[374353422,1753278653719,-460.0,0.00022191,2]
[374353424,1753278653729,-828.75,0.00022191,2]
[374353426,1753278653738,-1093.38,0.00022191,2]
[374353429,1753278653748,-460.0,0.00022191,2]
[374353431,1753278653758,-1266.0,0.00022191,2]
[374353433,1753278653768,-1612.78,0.00022191,2]
[374353435,1753278653778,-1545.58,0.00022191,2]
[374353437,1753278653788,-561.41,0.00022191,2]
[374353439,1753278653798,-204.0,0.00022192,7]
[374353441,1753278653811,-153.0,0.00022217,2]
[374353443,1753278653821,-460.0,0.0002222,2]
[374353445,1753278653830,-151.0,0.000223,7]
[374353447,1753278653840,-161.0,0.000223,6]
[374353449,1753278653850,-3432.7107726,0.00022344,2]
[374353450,1753278653860,-462.0,0.00022387,2]
[374353452,1753278653869,-487.26539813,0.00022408,2]
[374353455,1753278653880,-719.84913514,0.00022408,2]
[374353457,1753278653890,-189.6918429,0.00022411,2]
[374353459,1753278653900,-153.0,0.00022411,2]
[374353460,1753278653910,-153.0,0.00022411,2]
[374353461,1753278653920,-153.0,0.00022411,2]
[374353463,1753278653929,-153.0,0.00022411,2]
[374353465,1753278653939,-153.0,0.00022411,2]
[374353467,1753278653949,-153.0,0.00022411,2]
[374353470,1753278653964,-1503.73116406,0.00022423,2]
[374353472,1753278653976,-1500.0,0.00022423,2]
[374353474,1753278653985,-1097.99224489,0.00022423,2]
[374353476,1753278653994,-1500.0,0.00022423,2]
[374353478,1753278654003,-625.99046254,0.00022423,2]
[374353496,1753278654168,-874.00953746,0.00022423,2]
[374353498,1753278654177,-1626.88007973,0.00022423,2]
[374353500,1753278654187,-1500.0,0.00022423,2]
[374353503,1753278654198,-1500.0,0.00022423,2]
[374353505,1753278654211,-1502.478894,0.00022423,2]
[374353507,1753278654221,-12768.8714229,0.00022431,2]
[374353509,1753278654231,-3449.9,0.00022433,5]
[374353511,1753278654240,-1330.376908,0.0002244,2]
[374353513,1753278654251,-1577.91857325,0.00022453,2]
[374353515,1753278654260,-1129.31904846,0.00022453,2]
[374353517,1753278654270,-1500.0,0.00022453,2]
[374353519,1753278654279,-1500.0,0.00022453,2]
[374353521,1753278654289,-1500.0,0.00022453,2]
[374353523,1753278654299,-1500.0,0.00022453,2]
[374353525,1753278654309,-1500.0,0.00022453,2]
[374353527,1753278654319,-1500.0,0.00022453,2]
[374353529,1753278654329,-1513.72045867,0.00022453,2]
[374353531,1753278654338,-1500.0,0.00022453,2]
[374353533,1753278654347,-1500.0,0.00022453,2]
[374353535,1753278654357,-1500.0,0.00022453,2]
[374353537,1753278654367,-7526.64,0.00022465,2]
[374353539,1753278654378,-460.0,0.00022465,2]
[374353541,1753278654388,-1926.88,0.00022465,2]
[374353543,1753278654397,-407.376389,0.00022465,7]
[374353545,1753278654407,-407.376389,0.00022465,7]
[374353547,1753278654416,-1268.06,0.00022465,2]
[374353549,1753278654425,-621.61,0.00022465,2]
[374353551,1753278654434,-480.34,0.00022465,2]
[374353553,1753278654444,-460.0,0.00022465,2]
[374353555,1753278654453,-460.0,0.00022465,2]
[374353557,1753278654467,-549.96,0.00022465,2]
[374353559,1753278654477,-460.0,0.00022465,2]
[374353561,1753278654487,-580.38,0.00022465,2]
[374353563,1753278654496,-460.0,0.00022465,2]
[374353565,1753278654506,-460.0,0.00022465,2]
[374353567,1753278654515,-961.09,0.00022465,2]
[374353569,1753278654524,-2054.53,0.00022465,2]
[374353571,1753278654534,-542.39,0.00022465,2]
[374353573,1753278654544,-460.0,0.00022465,2]
[374353575,1753278654553,-460.0,0.00022465,2]
[374353577,1753278654563,-484.64,0.00022465,2]
[374353579,1753278654573,-460.0,0.00022465,2]
[374353581,1753278654582,-3279.89,0.00022465,2]
[374353583,1753278654592,-595.63,0.00022465,2]
[374353585,1753278654601,-708.43,0.00022465,2]
[374353587,1753278654610,-1333.69,0.00022465,2]
[374353589,1753278654619,-10302.36,0.00022465,2]
[374353591,1753278654628,-553.39,0.00022465,2]
[374353593,1753278654638,-212.19304691,0.00022465,2]
[374353595,1753278654647,-478.71,0.00022465,2]
[374353597,1753278654656,-460.0,0.00022465,2]
[374353599,1753278654666,-460.0,0.00022465,2]
[374353601,1753278654676,-2453.51,0.00022465,2]
[374353603,1753278654685,-2633.59,0.00022465,2]
[374353605,1753278654695,-536.74,0.00022465,2]
[374353607,1753278654705,-460.0,0.00022465,2]
[374353609,1753278654718,-2867.23,0.00022465,2]
[374353611,1753278654728,-460.0,0.00022465,2]
[374353613,1753278654738,-828.75,0.00022465,2]
[374353615,1753278654748,-1093.38,0.00022465,2]
[374353617,1753278654757,-460.0,0.00022465,2]
[374353619,1753278654767,-1266.0,0.00022465,2]
[374353621,1753278654777,-2350.7,0.00022465,2]
[374353623,1753278654787,-561.41,0.00022465,2]
[374353625,1753278654797,-500.0,0.00022473,2]
[374353627,1753278654807,-158.27900585,0.00022473,2]
[374353629,1753278654816,-500.0,0.00022473,2]
[374353631,1753278654828,-500.0,0.00022473,2]
[374353633,1753278654838,-2828.394855,0.0002249,7]
[374353635,1753278654848,-2828.394855,0.0002249,7]
[374353637,1753278654858,-680.710666,0.0002249,7]
[374353639,1753278654869,-680.710666,0.0002249,7]
[374353641,1753278654885,-151.0,0.0002249,7]
[374353643,1753278654895,-153.222899,0.0002249,7]
[374353645,1753278654907,-151.0,0.0002249,7]
[374353648,1753278654918,-70701.3146007,0.000225,2]
[374353650,1753278654928,-60055.04,0.000225,2]
[374353651,1753278654938,-3432.710773,0.00022519,2]
[374353653,1753278654948,-462.0,0.0002254,2]
[374353656,1753278654962,-462.0,0.00022551,2]
[374353657,1753278654973,-223.0315306,0.00022571,2]
[374353659,1753278654982,-161.0,0.000226,7]
[374353661,1753278654992,-240.664092,0.00022603,2]
[374353663,1753278655002,-348.21195986,0.00022603,2]
[374353665,1753278655012,-306.6828277,0.00022655,2]
[374353667,1753278655022,-151.0,0.000227,7]
[374353669,1753278655032,-354.0965,0.00022708,2]
[374353671,1753278655042,-322.621255,0.00022708,2]
[374353673,1753278655052,-7526.64,0.00022739,2]
[374353675,1753278655062,-412.74,0.00022739,2]
[374353677,1753278655071,-1926.88,0.00022739,2]
[374353679,1753278655081,-1268.06,0.00022739,2]
[374353681,1753278655090,-621.61,0.00022739,2]
[374353684,1753278655104,-480.34,0.00022739,2]
[374353686,1753278655114,-460.0,0.00022739,2]
[374353688,1753278655123,-549.96,0.00022739,2]
[374353690,1753278655133,-460.0,0.00022739,2]
[374353692,1753278655143,-580.38,0.00022739,2]
[374353694,1753278655152,-460.0,0.00022739,2]
[374353696,1753278655162,-460.0,0.00022739,2]
[374353697,1753278655171,-961.09,0.00022739,2]
[374353700,1753278655183,-2054.53,0.00022739,2]
[374353702,1753278655193,-542.39,0.00022739,2]
[374353704,1753278655203,-460.0,0.00022739,2]
[374353706,1753278655217,-460.0,0.00022739,2]
[374353707,1753278655227,-484.64,0.00022739,2]
[374353709,1753278655236,-460.0,0.00022739,2]
[374353712,1753278655246,-3279.89,0.00022739,2]
[374353714,1753278655257,-595.63,0.00022739,2]
[374353716,1753278655266,-708.43,0.00022739,2]
[374353718,1753278655276,-1333.69,0.00022739,2]
[374353720,1753278655288,-10302.36,0.00022739,2]
[374353722,1753278655298,-553.39,0.00022739,2]
[374353724,1753278655308,-478.71,0.00022739,2]
[374353726,1753278655318,-460.0,0.00022739,2]
[374353728,1753278655327,-460.0,0.00022739,2]
[374353730,1753278655337,-2453.51,0.00022739,2]
[374353732,1753278655346,-2633.59,0.00022739,2]
[374353734,1753278655355,-536.74,0.00022739,2]
[374353747,1753278655476,-460.0,0.00022739,2]
[374353749,1753278655486,-2867.23,0.00022739,2]
[374353751,1753278655496,-460.0,0.00022739,2]
[374353753,1753278655506,-828.75,0.00022739,2]
[374353755,1753278655516,-1093.38,0.00022739,2]
[374353757,1753278655526,-547.56613861,0.00022739,2]
[374353759,1753278655536,-1266.0,0.00022739,2]
[374353761,1753278655546,-561.41,0.00022739,2]
[374353763,1753278655556,-462.0,0.00022752,2]
[374353765,1753278655566,-462.0,0.00022757,2]
[374353767,1753278655575,-3449.9,0.00022766,6]
[374353769,1753278655585,-560.0,0.00022768,2]
[374353771,1753278655595,-462.0,0.00022774,2]
[374353773,1753278655605,-808.62,0.000228,7]
[374353775,1753278655614,-592.327966,0.00022846,7]
[374353777,1753278655624,-592.327966,0.00022846,7]
[374353779,1753278655633,-151.0,0.00022846,7]
[374353781,1753278655643,-5984.392739,0.00022846,7]
[374353783,1753278655654,-5984.392739,0.00022846,7]
[374353785,1753278655664,-151.0,0.00022846,7]
[374353787,1753278655673,-159.9205653,0.00022849,2]
[374353789,1753278655683,-178.2325116,0.00022849,2]
[374353791,1753278655692,-153.0,0.00022849,2]
[374353793,1753278655702,-178.2325116,0.00022849,2]
[374353795,1753278655715,-159.9205653,0.00022849,2]
[374353797,1753278655725,-153.0,0.00022849,2]
[374353799,1753278655734,-577.5430988,0.00022849,2]
[374353801,1753278655744,-178.2325116,0.00022849,2]
[374353803,1753278655753,-159.9205653,0.00022849,2]
[374353805,1753278655762,-153.0,0.00022849,2]
[374353807,1753278655771,-577.5430988,0.00022849,2]
[374353809,1753278655781,-159.9205653,0.00022849,2]
[374353811,1753278655790,-178.2325116,0.00022849,2]
[374353813,1753278655801,-159.9205653,0.00022849,2]
[374353815,1753278655812,-153.0,0.00022849,2]
[374353817,1753278655822,-577.5430988,0.00022849,2]
[374353819,1753278655831,-178.2325116,0.00022849,2]
[374353821,1753278655841,-159.9205653,0.00022849,2]
[374353823,1753278655851,-179.0619245,0.00022849,2]
[374353824,1753278655860,-577.5430988,0.00022849,2]
[374353826,1753278655870,-178.2325116,0.00022849,2]
[374353828,1753278655879,-577.5430988,0.00022849,2]
[374353830,1753278655889,-159.9205653,0.00022849,2]
[374353832,1753278655899,-505.4653954,0.00022849,2]
[374353834,1753278655909,-159.9205653,0.00022849,2]
[374353836,1753278655918,-178.2325116,0.00022849,2]
[374353838,1753278655928,-159.9205653,0.00022849,2]
[374353840,1753278655938,-577.5430988,0.00022849,2]
[374353842,1753278655947,-178.2325116,0.00022849,2]
[374353844,1753278655957,-159.9205653,0.00022849,2]
[374353846,1753278655972,-178.2325116,0.00022849,2]
[374353848,1753278655982,-577.5430988,0.00022849,2]
[374353850,1753278655991,-178.2325116,0.00022849,2]
[374353852,1753278656001,-577.5430988,0.00022849,2]
[374353854,1753278656011,-159.9205653,0.00022849,2]
[374353856,1753278656020,-159.9205653,0.00022849,2]
[374353858,1753278656030,-577.5430988,0.00022849,2]
[374353860,1753278656040,-178.2325116,0.00022849,2]
[374353862,1753278656050,-178.2325116,0.00022849,2]
[374353864,1753278656059,-159.9205653,0.00022849,2]
[374353866,1753278656069,-577.5430988,0.00022849,2]
[374353868,1753278656078,-577.5430988,0.00022849,2]
[374353870,1753278656088,-159.9205653,0.00022849,2]
[374353871,1753278656097,-178.2325116,0.00022849,2]
[374353873,1753278656107,-159.9205653,0.00022849,2]
[374353875,1753278656116,-178.2325116,0.00022849,2]
[374353877,1753278656126,-157.6584605,0.00022849,2]
[374353879,1753278656136,-178.2325116,0.00022849,2]
[374353881,1753278656145,-178.2325116,0.00022849,2]
[374353883,1753278656155,-159.9205653,0.00022849,2]
[374353885,1753278656165,-1298.05,0.00022865,3]
[374353887,1753278656175,-354.0965,0.00022882,3]
[374353889,1753278656184,-322.621255,0.00022882,3]
[374353891,1753278656194,-462.0,0.00022895,2]
[374353893,1753278656204,-4504.0,0.00022895,2]
[374353895,1753278656218,-14768.17626806,0.000229,7]
[374353897,1753278656227,-12622.36869388,0.000229,7]
[374353899,1753278656237,-153.0,0.00022904,2]
[374353901,1753278656246,-153.0,0.00022904,2]
[374353903,1753278656255,-153.0,0.00022904,2]
[374353905,1753278656265,-153.0,0.00022904,2]
[374353907,1753278656274,-153.0,0.00022904,2]
[374353909,1753278656284,-153.0,0.00022904,2]
[374353911,1753278656292,-153.0,0.00022904,2]
[374353913,1753278656304,-153.0,0.00022904,2]
[374353915,1753278656314,-153.0,0.00022904,2]
[374353917,1753278656323,-153.0,0.00022904,2]
[374353919,1753278656333,-153.0,0.00022904,2]
[374353921,1753278656343,-153.0,0.00022904,2]
[374353923,1753278656352,-153.0,0.00022904,2]
[374353925,1753278656361,-153.0,0.00022904,2]
[374353927,1753278656371,-500.0,0.00022908,2]
[374353929,1753278656380,-266601.07016332,0.00022929,2]
[374353931,1753278656389,-2828.394855,0.00022929,7]
[374353933,1753278656398,-2828.394855,0.00022929,7]
[374353935,1753278656408,-680.710666,0.00022929,7]
[374353937,1753278656417,-680.710666,0.00022929,7]
[374353939,1753278656426,-151.0,0.00022929,7]
[374353941,1753278656435,-151.0,0.00022929,7]
[374353943,1753278656445,-151.0,0.00022929,7]
[374353944,1753278656454,-151.0,0.00022929,7]
[374353946,1753278656468,-151.0,0.00022929,7]
[374353948,1753278656477,-165.955037,0.00022929,7]
[374353950,1753278656487,-165.955037,0.00022929,7]
[374353952,1753278656496,-383.736464,0.00022929,7]
[374353954,1753278656506,-383.736464,0.00022929,7]
[374353956,1753278656516,-151.0,0.00022929,7]
[374353958,1753278656527,-151.0,0.00022929,7]
[374353960,1753278656539,-151.0,0.00022929,7]
[374353962,1753278656551,-151.0,0.00022929,7]
[374353964,1753278656563,-253.117891,0.00022931,8]
[374353965,1753278656573,-1298.05,0.00022965,4]
[374353968,1753278656587,-495.16783004,0.00022971,2]
[374353969,1753278656597,-1880.96517336,0.00022971,2]
[374353971,1753278656607,-150.0,0.00022973,2]
[374353973,1753278656616,-2000.0,0.0002298,2]
[374353975,1753278656625,-4504.0,0.00022982,2]
[374353977,1753278656636,-9810.06450645,0.00023,2]